lending/lending_fUSD_20250318
["ID","MTS","AMOUNT","RATE_DAILY","PERIOD"]
[356372397,1742339583793,-669.21,0.00040273,12]
[356372398,1742339583807,-2116.57,0.00040273,12]
[356372399,1742339583816,-1273.18,0.00040273,12]
[356372400,1742339583826,-662.07,0.00040273,12]
[356372401,1742339583836,-824.59,0.00040273,12]
[356372402,1742339583847,-1001.65,0.00040273,12]
[356372403,1742339583856,-865.19,0.00040273,12]
[356372404,1742339583865,-569.57,0.00040273,12]
[356372405,1742339583875,-850.25,0.00040273,12]
[356372406,1742339583884,-2025.31,0.00040273,12]
[356372407,1742339583894,-1034.97,0.00040273,12]
[356372408,1742339583904,-1125.43,0.00040273,12]
[356372409,1742339583914,-736.13,0.00040273,12]
[356372410,1742339583923,-500.0,0.00040273,12]
[356372411,1742339583933,-705.75,0.00040273,12]
[356372412,1742339583943,-1168.81,0.00040273,12]
[356372413,1742339583953,-500.0,0.00040273,12]
[356372414,1742339583963,-909.53,0.00040273,12]
[356372415,1742339583972,-1214.66,0.00040273,12]
[356372416,1742339583982,-750.56,0.00040273,12]
[356372417,1742339583992,-499.10995617,0.00040273,12]
[356372418,1742339584003,-999.43,0.00040273,12]
[356372419,1742339584012,-912.96,0.00040273,12]
[356372420,1742339584022,-500.0,0.00040273,12]
[356372421,1742339584031,-628.87,0.00040273,12]
[356372422,1742339584041,-1022.31,0.00040273,12]
[356372423,1742339584051,-577.25143545,0.00040273,12]
[356372424,1742339584060,-664.59,0.00040273,12]
[356372425,1742339584070,-970.21,0.00040273,12]
[356372426,1742339584080,-1388.92,0.00040273,12]
[356372427,1742339584090,-605.69,0.00040273,12]
[356372428,1742339584100,-1253.42,0.00040273,12]
[356372429,1742339584110,-500.0,0.00040273,12]
[356372430,1742339584119,-500.0,0.00040273,12]
[356372431,1742339584128,-1024.33,0.00040273,12]
[356372432,1742339584138,-603.22,0.00040273,12]
[356372433,1742339584147,-747.21,0.00040273,12]
[356372434,1742339584158,-500.0,0.00040273,12]
[356372435,1742339584167,-1242.02,0.00040273,12]
[356372436,1742339584176,-843.17,0.00040273,12]
[356372437,1742339584186,-535.11,0.00040273,12]
[356372438,1742339584196,-532.91,0.00040273,12]
[356372439,1742339584206,-536.51,0.00040273,7]
[356372440,1742339584216,-864.22,0.00040273,12]
[356372441,1742339584225,-500.0,0.00040273,12]
[356372442,1742339584234,-500.0,0.00040273,12]
[356372443,1742339584244,-1425.59,0.00040273,12]
[356372444,1742339584253,-838.26,0.00040273,12]
[356372445,1742339584263,-1035.77,0.00040273,12]
[356372446,1742339584273,-500.0,0.00040273,12]
[356372447,1742339584282,-1119.9,0.00040273,12]
[356372448,1742339584291,-940.64,0.00040273,12]
[356372449,1742339584301,-500.0,0.00040273,12]
[356372450,1742339584310,-757.19,0.00040273,12]
[356372451,1742339584320,-500.0,0.00040273,12]
[356372452,1742339584329,-1602.15,0.00040273,12]
[356372453,1742339584338,-1002.8,0.00040273,12]
[356372454,1742339584347,-1331.13,0.00040273,12]
[356372455,1742339584356,-1198.43,0.00040273,12]
[356372456,1742339584365,-500.0,0.00040273,12]
[356372457,1742339584375,-649.81,0.00040273,12]
[356372458,1742339584384,-2598.97,0.00040273,12]
[356372459,1742339584394,-999.15,0.00040273,12]
[356372460,1742339584404,-3644.21,0.00040273,12]
[356372461,1742339584414,-286.27172916,0.00040273,12]
[356372462,1742339584423,-1387.99,0.00040273,12]
[356372463,1742339584431,-843.24,0.00040273,12]
[356372464,1742339584441,-500.0,0.00040273,12]
[356372465,1742339584451,-2465.62,0.00040273,12]
[356372466,1742339584460,-975.0,0.00040273,12]
[356372467,1742339584469,-609.77,0.00040273,12]
[356372468,1742339584479,-974.58,0.00040273,12]
[356372469,1742339584488,-1078.91,0.00040273,12]
[356372470,1742339584498,-2236.78,0.00040273,12]
[356372471,1742339584507,-1919.16,0.00040273,12]
[356372472,1742339584517,-2066.04,0.00040273,12]
[356372473,1742339584527,-1744.56,0.00040273,12]
[356372474,1742339584537,-924.09,0.00040273,12]
[356372475,1742339584546,-965.89,0.00040273,12]
[356372476,1742339584556,-2170.13,0.00040273,7]
[356372477,1742339584565,-630.53,0.00040273,12]
[356372478,1742339584575,-4236.85,0.00040273,12]
[356372479,1742339584585,-420.91134019,0.00040273,12]
[356372480,1742339584595,-701.55,0.00040273,12]
[356372481,1742339584604,-2364.63,0.00040273,12]
[356372482,1742339584615,-2071.16,0.00040273,12]
[356372483,1742339584624,-940.24,0.00040273,12]
[356372484,1742339584633,-1084.3,0.00040273,12]
[356372485,1742339584642,-833.55,0.00040273,12]
[356372486,1742339584652,-1166.33,0.00040273,12]
[356372487,1742339584662,-1018.16,0.00040273,12]
[356372488,1742339584671,-3791.02,0.00040273,12]
[356372489,1742339584681,-722.87,0.00040273,12]
[356372490,1742339584690,-591.18,0.00040273,12]
[356372491,1742339584700,-627.35,0.00040273,12]
[356372492,1742339584710,-433.99,0.00040273,12]
[356372493,1742339584719,-2218.35,0.00040273,12]
[356372494,1742339584729,-2207.71,0.00040273,12]
[356372495,1742339584738,-1038.13,0.00040273,12]
[356372496,1742339584748,-7286.97,0.00040273,2]
[356372497,1742339584757,-4093.1,0.00040273,12]
[356372498,1742339584767,-500.0,0.00040273,12]
[356372499,1742339584776,-662.54,0.00040273,12]
[356372500,1742339584786,-617.61,0.00040273,12]
[356372501,1742339584796,-884.25,0.00040273,12]
[356372502,1742339584806,-2314.16,0.00040273,12]
[356372503,1742339584816,-1249.76,0.00040273,12]
[356372504,1742339584829,-590.8,0.00040273,12]
[356372505,1742339584839,-568.35,0.00040273,12]
[356372506,1742339584849,-605.74,0.00040273,12]
[356372507,1742339584859,-4019.27,0.00040273,12]
[356372508,1742339584871,-845.44,0.00040273,12]
[356372509,1742339584880,-1263.79,0.00040273,12]
[356372510,1742339584890,-500.0,0.00040273,12]
[356372511,1742339584900,-722.51,0.00040273,12]
[356372512,1742339584912,-582.04,0.00040273,12]
[356372513,1742339584922,-1473.86,0.00040273,12]
[356372514,1742339584932,-1361.67,0.00040273,12]
[356372515,1742339584943,-841.11,0.00040273,12]
[356372516,1742339584954,-713.87,0.00040273,12]
[356372517,1742339584965,-1912.63,0.00040273,12]
[356372518,1742339584975,-179.12862469,0.00040273,12]
[356372519,1742339584985,-714.31,0.00040273,12]
[356372520,1742339584995,-635.53,0.00040273,12]
[356372521,1742339585005,-1883.04,0.00040273,12]
[356372522,1742339585014,-5988.8,0.00040273,12]
[356372523,1742339585025,-198.46519311,0.00040273,12]
[356372524,1742339585034,-2180.97,0.00040273,10]
[356372525,1742339585044,-1955.72,0.00040273,12]
[356372526,1742339585053,-6906.57,0.00040273,12]
[356372527,1742339585063,-2131.38,0.00040273,12]
[356372528,1742339585071,-713.4,0.00040273,12]
[356372529,1742339585081,-1357.37,0.00040273,12]
[356372530,1742339585091,-758.94,0.00040273,12]
[356372531,1742339585101,-500.0,0.00040273,12]
[356372532,1742339585111,-517.02,0.00040273,12]
[356372533,1742339585120,-1496.75,0.00040273,12]
[356372534,1742339585130,-1214.53,0.00040273,12]
[356372535,1742339585139,-574.20295062,0.00040273,12]
[356372536,1742339585148,-500.0,0.00040273,12]
[356372537,1742339585157,-2414.38,0.00040273,12]
[356372538,1742339585167,-1375.9,0.00040273,12]
[356372539,1742339585176,-500.0,0.00040273,12]
[356372540,1742339585185,-1974.79,0.00040273,12]
[356372541,1742339585194,-925.56,0.00040273,12]
[356372542,1742339585203,-712.94,0.00040273,12]
[356372543,1742339585214,-839.12,0.00040273,12]
[356372544,1742339585223,-767.88,0.00040273,12]
[356372545,1742339585233,-1067.84,0.00040273,12]
[356372546,1742339585242,-1426.33,0.00040273,12]
[356372547,1742339585251,-1432.86,0.00040273,12]
[356372548,1742339585260,-780.68,0.00040273,12]
[356372549,1742339585270,-1216.8,0.00040273,12]
[356372550,1742339585279,-1487.69,0.00040273,12]
[356372551,1742339585289,-1708.8,0.00040273,12]
[356372552,1742339585298,-500.0,0.00040273,12]
[356372553,1742339585307,-913.22,0.00040273,12]
[356372554,1742339585316,-1929.03,0.00040273,12]
[356372555,1742339585325,-1017.99,0.00040273,12]
[356372556,1742339585334,-2290.36,0.00040273,12]
[356372557,1742339585343,-902.37,0.00040273,12]
[356372558,1742339585352,-1430.23,0.00040273,12]
[356372559,1742339585361,-1072.64,0.00040273,12]
[356372560,1742339585370,-674.04,0.00040273,12]
[356372561,1742339585379,-1760.11,0.00040273,12]
[356372562,1742339585389,-1638.63,0.00040273,12]
[356372563,1742339585399,-682.57,0.00040273,12]
[356372564,1742339585408,-1045.11,0.00040273,12]
[356372565,1742339585417,-794.12,0.00040273,12]
[356372566,1742339585427,-500.0,0.00040273,12]
[356372567,1742339585436,-1729.5,0.00040273,12]
[356372568,1742339585447,-1395.45,0.00040273,12]
[356372569,1742339585456,-1432.26,0.00040273,12]
[356372570,1742339585466,-1231.14,0.00040273,12]
[356372571,1742339585475,-1130.18,0.00040273,12]
[356372572,1742339585485,-500.0,0.00040273,12]
[356372573,1742339585495,-1071.53,0.00040273,12]
[356372574,1742339585504,-10881.54,0.00040273,12]
[356372575,1742339585513,-940.53,0.00040273,12]
[356372576,1742339585522,-931.98,0.00040273,12]
[356372577,1742339585532,-643.93,0.00040273,12]
[356372578,1742339585542,-736.61,0.00040273,12]
[356372579,1742339585551,-1889.22,0.00040273,12]
[356372580,1742339585560,-500.0,0.00040273,12]
[356372581,1742339585568,-1912.43,0.00040273,12]
[356372582,1742339585577,-500.0,0.00040273,12]
[356372583,1742339585586,-867.89,0.00040273,12]
[356372584,1742339585596,-655.9,0.00040273,12]
[356372585,1742339585606,-3492.09,0.00040273,12]
[356372586,1742339585615,-8347.58,0.00040273,12]
[356372587,1742339585624,-982.97,0.00040273,12]
[356372588,1742339585634,-793.27,0.00040273,12]
[356372589,1742339585643,-536.71636161,0.00040273,12]
[356372590,1742339585653,-2617.2,0.00040273,12]
[356372591,1742339585663,-500.0,0.00040273,12]
[356372592,1742339585672,-2613.79,0.00040273,12]
[356372593,1742339585682,-674.83,0.00040273,12]
[356372594,1742339585691,-1198.65,0.00040273,12]
[356372595,1742339585702,-1104.92,0.00040273,12]
[356372596,1742339585712,-1000.0,0.00040273,12]
[356372597,1742339585722,-1351.56,0.00040273,12]
[356372598,1742339585732,-500.0,0.00040273,12]
[356372599,1742339585741,-573.24,0.00040273,12]
[356372600,1742339585750,-1155.96,0.00040273,12]
[356372601,1742339585758,-592.77,0.00040273,12]
[356372602,1742339585768,-819.5,0.00040273,12]
[356372603,1742339585777,-881.57,0.00040273,12]
[356372604,1742339585786,-733.05,0.00040273,12]
[356372605,1742339585798,-566.73,0.00040273,12]
[356372606,1742339585810,-678.37,0.00040273,12]
[356372607,1742339585820,-1747.47,0.00040273,12]
[356372608,1742339585829,-779.59,0.00040273,12]
[356372609,1742339585839,-700.61,0.00040273,12]
[356372610,1742339585850,-500.0,0.00040273,12]
[356372611,1742339585860,-6201.97,0.00040273,12]
[356372612,1742339585869,-2724.32,0.00040273,12]
[356372613,1742339585879,-673.71,0.00040273,12]
[356372614,1742339585889,-500.0,0.00040273,6]
[356372615,1742339585899,-634.03,0.00040273,12]
[356372616,1742339585908,-1388.66,0.00040273,12]
[356372617,1742339585918,-1201.66,0.00040273,12]
[356372618,1742339585927,-789.17,0.00040273,12]
[356372619,1742339585936,-765.41,0.00040273,12]
[356372620,1742339585946,-637.48,0.00040273,12]
[356372621,1742339585956,-1408.89,0.00040273,12]
[356372622,1742339585967,-500.0,0.00040273,12]
[356372623,1742339585976,-1079.25,0.00040273,12]
[356372624,1742339585986,-500.0,0.00040273,12]
[356372625,1742339585995,-629.47,0.00040273,12]
[356372626,1742339586005,-500.0,0.00040273,12]
[356372627,1742339586015,-500.0,0.00040273,12]
[356372628,1742339586024,-500.0,0.00040273,12]
[356372629,1742339586034,-2483.39,0.00040273,12]
[356372630,1742339586043,-423.62332497,0.00040273,12]
[356372631,1742339586052,-818.98,0.00040273,12]
[356372632,1742339586062,-8678.86,0.00040273,12]
[356372633,1742339586071,-500.0,0.00040273,12]
[356372634,1742339586080,-500.0,0.00040273,12]
[356372635,1742339586089,-1387.5,0.00040273,12]
[356372636,1742339586099,-852.66,0.00040273,12]
[356372637,1742339586108,-609.81,0.00040273,12]
[356372638,1742339586118,-1940.56,0.00040273,12]
[356372639,1742339586128,-982.22,0.00040273,12]
[356372640,1742339586138,-5124.49,0.00040273,12]
[356372641,1742339586148,-848.28,0.00040273,12]
[356372642,1742339586157,-555.67,0.00040273,12]
[356372643,1742339586167,-500.0,0.00040273,12]
[356372644,1742339586176,-610.21,0.00040273,12]
[356372645,1742339586185,-797.64,0.00040273,12]
[356372646,1742339586194,-1404.74,0.00040273,12]
[356372647,1742339586203,-570.46,0.00040273,12]
[356372648,1742339586213,-626.53,0.00040273,12]
[356372649,1742339586223,-1037.27,0.00040273,12]
[356372650,1742339586232,-1010.64,0.00040273,12]
[356372651,1742339586241,-183.2,0.00040273,12]
[356372652,1742339586251,-2051.57,0.00040273,12]
[356372653,1742339586260,-517.9,0.00040273,12]
[356372654,1742339586270,-698.57,0.00040273,12]
[356372655,1742339586279,-753.9,0.00040273,12]
[356372656,1742339586288,-810.35,0.00040273,12]
[356372657,1742339586298,-976.72,0.00040273,12]
[356372658,1742339586307,-816.08,0.00040273,12]
[356372659,1742339586317,-1763.99,0.00040273,12]
[356372660,1742339586326,-807.5,0.00040273,12]
[356372661,1742339586335,-974.77,0.00040273,12]
[356372662,1742339586344,-500.0,0.00040273,12]
[356372663,1742339586354,-1119.31,0.00040273,12]
[356372664,1742339586364,-1305.41,0.00040273,12]
[356372665,1742339586373,-764.52,0.00040273,12]
[356372666,1742339586383,-1054.67,0.00040273,12]
[356372667,1742339586392,-697.71,0.00040273,12]
[356372668,1742339586402,-784.0,0.00040273,12]
[356372669,1742339586411,-636.48,0.00040273,12]
[356372670,1742339586420,-871.68,0.00040273,12]
[356372671,1742339586429,-500.0,0.00040273,12]
[356372672,1742339586439,-1505.16,0.00040273,12]
[356372673,1742339586449,-500.0,0.00040273,12]
[356372674,1742339586458,-500.0,0.00040273,12]
[356372675,1742339586468,-3544.19,0.00040273,12]
[356372676,1742339586478,-500.0,0.00040273,12]
[356372677,1742339586600,-1054.74,0.00040273,12]
[356372678,1742339586614,-3375.24,0.00040273,12]
[356372679,1742339586623,-1877.16,0.00040273,12]
[356372680,1742339586633,-1691.18,0.00040273,12]
[356372681,1742339586643,-517.11,0.00040273,12]
[356372682,1742339586652,-1000.0,0.00040274,4]
[356372683,1742339586661,-1657.99266,0.00040288,30]
[356372684,1742339586671,-151.031817,0.00040398,120]
[356372685,1742339586680,-1000.0,0.00040411,4]
[356372686,1742339586690,-150.0,0.00040442,2]
[356372687,1742339586699,-509.82,0.00040448,120]
[356372688,1742339586709,-43458.60093355,0.0004048,10]
[356372689,1742339586720,-1657.99266,0.00040488,30]
[356372690,1742339586730,-151.031805,0.00040498,120]
[356372691,1742339586740,-158.0,0.000405,120]
[356372692,1742339586749,-500.0,0.00040547,12]
[356372693,1742339586759,-660.95,0.00040547,12]
[356372694,1742339586768,-1089.18,0.00040547,12]
[356372695,1742339586778,-1280.18,0.00040547,12]
[356372696,1742339586787,-705.65,0.00040547,12]
[356372697,1742339586797,-152.61978388,0.00040547,12]
[356372698,1742339586806,-839.95,0.00040547,12]
[356372699,1742339586816,-500.0,0.00040547,12]
[356372700,1742339586827,-586.59,0.00040547,12]
[356372701,1742339586836,-500.0,0.00040547,12]
[356372702,1742339586846,-659.86,0.00040547,12]
[356372703,1742339586855,-500.0,0.00040547,12]
[356372704,1742339586864,-781.58,0.00040547,12]
[356372705,1742339586874,-578.43,0.00040547,12]
[356372706,1742339586885,-716.41,0.00040547,12]
[356372707,1742339586896,-875.76,0.00040547,12]
[356372708,1742339586907,-567.36924968,0.00040547,12]
[356372709,1742339586916,-1293.1,0.00040547,12]
[356372710,1742339586926,-554.73,0.00040547,12]
[356372711,1742339586936,-500.0,0.00040547,12]
[356372712,1742339586945,-500.0,0.00040547,12]
[356372713,1742339586954,-887.4,0.00040547,12]
[356372714,1742339586965,-933.35,0.00040547,12]
[356372715,1742339586974,-645.27,0.00040547,12]
[356372716,1742339586985,-1270.34,0.00040547,12]
[356372717,1742339586994,-635.6,0.00040547,12]
[356372718,1742339587004,-546.63,0.00040547,12]
[356372719,1742339587013,-500.0,0.00040547,12]
[356372720,1742339587023,-1007.61,0.00040547,12]
[356372721,1742339587033,-616.02,0.00040547,12]
[356372722,1742339587042,-686.76,0.00040547,12]
[356372723,1742339587052,-531.32,0.00040547,12]
[356372724,1742339587061,-601.48,0.00040547,12]
[356372725,1742339587070,-567.63,0.00040547,12]
[356372726,1742339587080,-963.46,0.00040547,12]
[356372727,1742339587089,-500.0,0.00040547,12]
[356372728,1742339587098,-815.63,0.00040547,12]
[356372729,1742339587108,-500.0,0.00040547,12]
[356372730,1742339587117,-500.37,0.00040547,12]
[356372731,1742339587127,-546.76,0.00040547,12]
[356372732,1742339587136,-500.0,0.00040547,12]
[356372733,1742339587146,-500.0,0.00040547,12]
[356372734,1742339587156,-599.5,0.00040547,12]
[356372735,1742339587166,-729.58,0.00040547,12]
[356372736,1742339587175,-922.39,0.00040547,12]
[356372737,1742339587185,-1163.14,0.00040547,12]
[356372738,1742339587194,-875.92,0.00040547,30]
[356372739,1742339587204,-750.87,0.00040547,12]
[356372740,1742339587215,-1410.05,0.00040547,12]
[356372741,1742339587225,-510.0,0.00040547,12]
[356372742,1742339587234,-541.9,0.00040547,12]
[356372743,1742339587244,-2100.21,0.00040547,12]
[356372744,1742339587254,-819.72,0.00040547,12]
[356372745,1742339587264,-500.0,0.00040547,12]
[356372746,1742339587273,-868.85,0.00040547,12]
[356372747,1742339587283,-500.0,0.00040547,12]
[356372748,1742339587293,-832.99,0.00040547,12]
[356372749,1742339587303,-500.0,0.00040547,12]
[356372750,1742339587314,-1487.67,0.00040547,12]
[356372751,1742339587323,-1565.380344,0.00040547,12]
[356372752,1742339587333,-151.731954,0.00040547,12]
[356372753,1742339587342,-500.0,0.00040547,12]
[356372754,1742339587352,-156.823057,0.00040547,12]
[356372755,1742339587362,-728.98,0.00040547,12]
[356372756,1742339587371,-915.45,0.00040547,12]
[356372757,1742339587380,-523.14,0.00040547,12]
[356372758,1742339587391,-500.0,0.00040547,12]
[356372759,1742339587400,-500.0,0.00040547,12]
[356372760,1742339587410,-415.53198,0.00040547,12]
[356372761,1742339587420,-178.59585786,0.00040547,12]
[356372762,1742339587430,-571.54,0.00040547,12]
[356372763,1742339587440,-547.0,0.00040547,12]
[356372764,1742339587450,-1579.021524,0.00040547,12]
[356372765,1742339587463,-540.14,0.00040547,12]
[356372766,1742339587474,-507.06,0.00040547,12]
[356372767,1742339587484,-500.0,0.00040547,12]
[356372768,1742339587494,-1406.95,0.00040547,12]
[356372769,1742339587504,-1265.92,0.00040547,12]
[356372770,1742339587514,-583.92,0.00040547,12]
[356372771,1742339587523,-819.59,0.00040547,12]
[356372772,1742339587533,-500.0,0.00040547,12]
[356372773,1742339587542,-500.0,0.00040547,12]
[356372774,1742339587552,-1112.86,0.00040547,12]
[356372775,1742339587562,-500.0,0.00040547,12]
[356372776,1742339587572,-849.05,0.00040547,12]
[356372777,1742339587582,-610.12,0.00040547,12]
[356372778,1742339587592,-500.0,0.00040547,12]
[356372779,1742339587602,-966.8,0.00040547,12]
[356372780,1742339587611,-562.17,0.00040547,12]
[356372781,1742339587622,-500.0,0.00040547,12]
[356372782,1742339587632,-565.83,0.00040547,12]
[356372783,1742339587642,-897.12,0.00040547,12]
[356372784,1742339587652,-436.56669625,0.00040547,12]
[356372785,1742339587662,-500.0,0.00040547,12]
[356372786,1742339587672,-588.08,0.00040547,12]
[356372787,1742339587682,-539.17,0.00040547,12]
[356372788,1742339587691,-500.0,0.00040547,12]
[356372789,1742339587701,-2686.86,0.00040547,12]
[356372790,1742339587710,-956.37,0.00040547,12]
[356372791,1742339587720,-1521.69,0.00040547,7]
[356372792,1742339587730,-914.58,0.00040547,12]
[356372793,1742339587739,-500.0,0.00040547,12]
[356372794,1742339587749,-537.65,0.00040547,12]
[356372795,1742339587758,-1313.1,0.00040547,12]
[356372796,1742339587767,-894.12,0.00040547,12]
[356372797,1742339587776,-523.64,0.00040547,12]
[356372798,1742339587785,-500.0,0.00040547,12]
[356372799,1742339587795,-523.91,0.00040547,12]
[356372800,1742339587811,-845.67,0.00040547,12]
[356372801,1742339587820,-500.0,0.00040547,12]
[356372802,1742339587829,-1156.08,0.00040547,12]
[356372803,1742339587840,-399.06,0.00040547,12]
[356372804,1742339587852,-510.37,0.00040547,12]
[356372805,1742339587862,-655.83,0.00040547,12]
[356372806,1742339587871,-1175.67,0.00040547,12]
[356372807,1742339587882,-675.44,0.00040547,12]
[356372808,1742339587892,-584.29,0.00040547,12]
[356372809,1742339587902,-1360.65,0.00040547,12]
[356372810,1742339587912,-535.37,0.00040547,12]
[356372811,1742339587922,-940.73,0.00040547,12]
[356372812,1742339587931,-661.64,0.00040547,12]
[356372813,1742339587941,-628.6,0.00040547,12]
[356372814,1742339587951,-872.38,0.00040547,12]
[356372815,1742339587960,-671.95,0.00040547,12]
[356372816,1742339587971,-589.35,0.00040547,12]
[356372817,1742339587981,-500.0,0.00040547,12]
[356372818,1742339587991,-500.0,0.00040547,12]
[356372819,1742339588000,-2111.58,0.00040547,12]
[356372820,1742339588010,-1118.44,0.00040547,12]
[356372821,1742339588020,-952.51,0.00040547,12]
[356372822,1742339588029,-1141.77,0.00040547,12]
[356372823,1742339588039,-509.9,0.00040547,12]
[356372824,1742339588048,-786.29,0.00040547,12]
[356372825,1742339588058,-885.74,0.00040547,12]
[356372826,1742339588067,-195.48,0.00040547,12]
[356372827,1742339588077,-853.02,0.00040547,12]
[356372828,1742339588089,-500.0,0.00040547,12]
[356372829,1742339588099,-930.16,0.00040547,12]
[356372830,1742339588108,-554.71,0.00040547,12]
[356372831,1742339588117,-534.99,0.00040547,12]
[356372832,1742339588127,-1096.04,0.00040547,12]
[356372833,1742339588136,-500.0,0.00040547,12]
[356372834,1742339588146,-669.21,0.00040547,12]
[356372835,1742339588155,-2116.57,0.00040547,12]
[356372836,1742339588165,-1273.18,0.00040547,12]
[356372837,1742339588175,-662.07,0.00040547,12]
[356372838,1742339588184,-824.59,0.00040547,12]
[356372839,1742339588193,-1001.65,0.00040547,12]
[356372840,1742339588203,-865.19,0.00040547,12]
[356372841,1742339588213,-569.57,0.00040547,12]
[356372842,1742339588222,-850.25,0.00040547,12]
[356372843,1742339588231,-2025.31,0.00040547,12]
[356372844,1742339588241,-1034.97,0.00040547,12]
[356372845,1742339588251,-1125.43,0.00040547,12]
[356372846,1742339588260,-736.13,0.00040547,12]
[356372847,1742339588269,-500.0,0.00040547,12]
[356372848,1742339588279,-705.75,0.00040547,12]
[356372849,1742339588289,-1168.81,0.00040547,12]
[356372850,1742339588299,-500.0,0.00040547,12]
[356372851,1742339588308,-909.53,0.00040547,12]
[356372852,1742339588318,-1214.66,0.00040547,12]
[356372853,1742339588328,-750.56,0.00040547,12]
[356372854,1742339588338,-999.43,0.00040547,12]
[356372855,1742339588348,-912.96,0.00040547,12]
[356372856,1742339588359,-166.12370911,0.00040547,12]
[356372857,1742339588369,-628.87,0.00040547,12]
[356372858,1742339588379,-1022.31,0.00040547,12]
[356372859,1742339588388,-664.59,0.00040547,12]
[356372860,1742339588398,-970.21,0.00040547,12]
[356372861,1742339588408,-605.69,0.00040547,12]
[356372862,1742339588417,-1388.92,0.00040547,12]
[356372863,1742339588428,-1253.42,0.00040547,12]
[356372864,1742339588438,-558.90631569,0.00040547,12]
[356372865,1742339588448,-500.0,0.00040547,12]
[356372866,1742339588459,-1024.33,0.00040547,12]
[356372867,1742339588470,-603.22,0.00040547,12]
[356372868,1742339588479,-747.21,0.00040547,12]
[356372869,1742339588490,-500.0,0.00040547,12]
[356372870,1742339588499,-1242.02,0.00040547,12]
[356372871,1742339588509,-843.17,0.00040547,12]
[356372872,1742339588519,-535.11,0.00040547,12]
[356372873,1742339588529,-532.91,0.00040547,12]
[356372874,1742339588538,-536.51,0.00040547,7]
[356372875,1742339588548,-864.22,0.00040547,12]
[356372876,1742339588557,-500.0,0.00040547,12]
[356372877,1742339588567,-500.0,0.00040547,12]
[356372878,1742339588577,-1425.59,0.00040547,12]
[356372879,1742339588586,-838.26,0.00040547,12]
[356372880,1742339588596,-1035.77,0.00040547,12]
[356372881,1742339588605,-500.0,0.00040547,12]
[356372882,1742339588614,-1119.9,0.00040547,12]
[356372883,1742339588624,-940.64,0.00040547,12]
[356372884,1742339588633,-500.0,0.00040547,12]
[356372885,1742339588644,-757.19,0.00040547,12]
[356372886,1742339588654,-500.0,0.00040547,12]
[356372887,1742339588663,-1602.15,0.00040547,12]
[356372888,1742339588672,-1002.8,0.00040547,12]
[356372889,1742339588682,-1331.13,0.00040547,12]
[356372890,1742339588691,-1198.43,0.00040547,12]
[356372891,1742339588701,-500.0,0.00040547,12]
[356372892,1742339588711,-649.81,0.00040547,12]
[356372893,1742339588721,-2598.97,0.00040547,12]
[356372894,1742339588731,-999.15,0.00040547,12]
[356372895,1742339588741,-3644.21,0.00040547,12]
[356372896,1742339588750,-1387.99,0.00040547,12]